fUSD/lending_fUSD_20240105
["ID","MTS","AMOUNT","RATE_DAILY","PERIOD"]
[310314625,1704471140750,-170.36083588,0.00032054,2]
[310314626,1704471140761,-500.0,0.00032054,2]
[310314627,1704471140772,-1069.2,0.00032054,2]
[310314628,1704471140782,-500.0,0.00032054,2]
[310314629,1704471140791,-500.0,0.00032054,2]
[310314630,1704471140801,-500.0,0.00032054,2]
[310314631,1704471140812,-500.0,0.00032054,2]
[310314632,1704471140822,-500.0,0.00032054,2]
[310314633,1704471140833,-500.0,0.00032054,2]
[310314634,1704471140843,-500.0,0.00032054,2]
[310314635,1704471140854,-625.92,0.00032054,2]
[310314636,1704471140864,-704.44,0.00032054,2]
[310314637,1704471140875,-500.0,0.00032054,2]
[310314638,1704471140886,-587.12,0.00032054,2]
[310314639,1704471140895,-500.0,0.00032054,2]
[310314640,1704471140906,-500.0,0.00032054,2]
[310314641,1704471140917,-500.0,0.00032054,2]
[310314642,1704471140927,-942.24,0.00032054,2]
[310314643,1704471140938,-563.12737168,0.00032054,2]
[310314644,1704471140948,-500.0,0.00032054,2]
[310314645,1704471140960,-500.0,0.00032054,2]
[310314646,1704471140971,-500.0,0.00032054,2]
[310314647,1704471140981,-521.20762028,0.00032054,2]
[310314648,1704471140991,-500.0,0.00032054,2]
[310314649,1704471141001,-500.0,0.00032054,2]
[310314650,1704471141013,-500.0,0.00032054,2]
[310314651,1704471141024,-1261.61,0.00032054,2]
[310314652,1704471141033,-1117.05,0.00032054,2]
[310314653,1704471141043,-500.0,0.00032054,2]
[310314654,1704471141054,-500.0,0.00032054,2]
[310314655,1704471141065,-500.0,0.00032054,2]
[310314656,1704471141075,-500.0,0.00032054,2]
[310314657,1704471141086,-565.76,0.00032054,2]
[310314658,1704471141096,-500.0,0.00032054,2]
[310314659,1704471141106,-925.99,0.00032054,2]
[310314660,1704471141117,-500.0,0.00032054,2]
[310314661,1704471141127,-500.0,0.00032054,2]
[310314662,1704471141137,-688.58,0.00032054,2]
[310314663,1704471141147,-500.0,0.00032054,2]
[310314664,1704471141157,-500.0,0.00032054,2]
[310314665,1704471141167,-858.46,0.00032054,2]
[310314666,1704471141177,-500.0,0.00032054,2]
[310314667,1704471141188,-500.0,0.00032054,2]
[310314668,1704471141198,-500.0,0.00032054,2]
[310314669,1704471141207,-500.0,0.00032054,2]
[310314670,1704471141217,-500.0,0.00032054,2]
[310314671,1704471141227,-500.0,0.00032054,2]
[310314672,1704471141237,-500.0,0.00032054,2]
[310314673,1704471141248,-500.0,0.00032054,2]
[310314674,1704471141257,-1444.56,0.00032054,2]
[310314675,1704471141267,-500.0,0.00032054,2]
[310314676,1704471141278,-500.0,0.00032054,2]
[310314677,1704471141288,-500.0,0.00032054,2]
[310314678,1704471141298,-500.0,0.00032054,2]
[310314679,1704471141309,-500.0,0.00032054,2]
[310314680,1704471141319,-563.9,0.00032054,2]
[310314681,1704471141329,-500.0,0.00032054,2]
[310314682,1704471141339,-555.49897846,0.00032054,2]
[310314683,1704471141349,-500.0,0.00032054,2]
[310314684,1704471141358,-515.94391486,0.00032054,2]
[310314685,1704471141368,-500.0,0.00032054,2]
[310314686,1704471141378,-709.45,0.00032054,2]
[310314687,1704471141388,-500.0,0.00032054,2]
[310314688,1704471141398,-500.0,0.00032054,2]
[310314689,1704471141408,-500.0,0.00032054,2]
[310314690,1704471141417,-500.0,0.00032054,2]
[310314691,1704471141427,-520.35,0.00032054,2]
[310314692,1704471141437,-855.3,0.00032054,2]
[310314693,1704471141447,-500.0,0.00032054,2]
[310314694,1704471141456,-500.0,0.00032054,2]
[310314695,1704471141466,-500.0,0.00032054,2]
[310314696,1704471141476,-1959.68,0.00032054,2]
[310314697,1704471141486,-500.0,0.00032054,2]
[310314698,1704471141496,-610.92,0.00032054,2]
[310314699,1704471141506,-617.83,0.00032054,2]
[310314700,1704471141516,-1510.28,0.00032054,2]
[310314701,1704471141526,-500.0,0.00032054,2]
[310314702,1704471141536,-500.0,0.00032054,2]
[310314703,1704471141547,-500.0,0.00032054,2]
[310314704,1704471141557,-500.0,0.00032054,2]
[310314705,1704471141567,-540.96,0.00032054,2]
[310314706,1704471141577,-618.06,0.00032054,2]
[310314707,1704471141587,-500.0,0.00032054,2]
[310314708,1704471141597,-500.0,0.00032054,2]
[310314709,1704471141607,-1094.64,0.00032054,2]
[310314710,1704471141617,-563.6900235,0.00032054,2]
[310314711,1704471141627,-617.93782268,0.00032054,2]
[310314712,1704471141637,-656.56,0.00032054,2]
[310314713,1704471141647,-170.91280718,0.00032054,2]
[310314714,1704471141657,-478.48716991,0.00032054,2]
[310314715,1704471141667,-500.0,0.00032054,2]
[310314716,1704471141677,-500.0,0.00032054,2]
[310314717,1704471141687,-1053.74,0.00032054,2]
[310314718,1704471141697,-500.0,0.00032054,2]
[310314719,1704471141707,-1104.35,0.00032054,2]
[310314720,1704471141717,-994.79,0.00032054,2]
[310314721,1704471141727,-319.32454064,0.00032054,2]
[310314722,1704471141736,-500.0,0.00032054,2]
[310314723,1704471141747,-533.79162408,0.00032054,2]
[310314724,1704471141756,-506.93,0.00032054,2]
[310314725,1704471141766,-500.0,0.00032054,2]
[310314726,1704471141778,-557.73239153,0.00032054,2]
[310314727,1704471141790,-500.0,0.00032054,2]
[310314728,1704471141799,-500.0,0.00032054,2]
[310314729,1704471141809,-976.12,0.00032054,2]
[310314730,1704471141819,-514.26,0.00032054,2]
[310314731,1704471141830,-572.06,0.00032054,2]
[310314732,1704471141840,-737.83,0.00032054,2]
[310314733,1704471141850,-1754.66,0.00032054,2]
[310314734,1704471141860,-558.74011169,0.00032054,2]
[310314735,1704471141872,-500.0,0.00032054,2]
[310314736,1704471141883,-647.46,0.00032054,2]
[310314737,1704471141893,-500.0,0.00032054,2]
[310314738,1704471141903,-500.0,0.00032054,2]
[310314739,1704471141913,-614.06,0.00032054,2]
[310314740,1704471141924,-500.0,0.00032054,2]
[310314741,1704471141933,-500.0,0.00032054,2]
[310314742,1704471141943,-500.0,0.00032054,2]
[310314743,1704471141953,-500.0,0.00032054,2]
[310314744,1704471141963,-762.69,0.00032054,2]
[310314745,1704471141973,-672.73,0.00032054,2]
[310314746,1704471141984,-586.77143308,0.00032054,2]
[310314747,1704471141994,-165.04035826,0.00032054,2]
[310314748,1704471142003,-500.0,0.00032054,2]
[310314749,1704471142014,-500.0,0.00032054,2]
[310314750,1704471142024,-500.0,0.00032054,2]
[310314751,1704471142034,-553.22,0.00032054,2]
[310314752,1704471142044,-500.0,0.00032054,2]
[310314753,1704471142054,-1134.29,0.00032054,2]
[310314754,1704471142064,-539.04,0.00032054,2]
[310314755,1704471142075,-500.0,0.00032054,2]
[310314756,1704471142085,-1649.86,0.00032054,2]
[310314757,1704471142095,-500.0,0.00032054,2]
[310314758,1704471142105,-500.0,0.00032054,2]
[310314759,1704471142119,-500.0,0.00032054,2]
[310314760,1704471142130,-835.39,0.00032054,2]
[310314761,1704471142140,-1069.61,0.00032054,2]
[310314762,1704471142150,-536.06,0.00032054,2]
[310314763,1704471142161,-489.9227455,0.00032054,2]
[310314764,1704471142172,-628.4,0.00032054,2]
[310314765,1704471142182,-555.52,0.00032054,2]
[310314766,1704471142193,-413.18443451,0.00032054,2]
[310314767,1704471142203,-1238.6,0.00032054,2]
[310314768,1704471142215,-514.35425656,0.00032054,2]
[310314769,1704471142226,-500.0,0.00032054,2]
[310314770,1704471142236,-1117.69,0.00032054,2]
[310314771,1704471142246,-500.0,0.00032054,2]
[310314772,1704471142257,-500.0,0.00032054,2]
[310314773,1704471142268,-500.0,0.00032054,2]
[310314774,1704471142280,-1268.87,0.00032054,2]
[310314775,1704471142291,-778.95,0.00032054,2]
[310314776,1704471142302,-500.0,0.00032054,2]
[310314777,1704471142313,-500.0,0.00032054,2]
[310314778,1704471142324,-500.0,0.00032054,2]
[310314779,1704471142334,-500.0,0.00032054,2]
[310314780,1704471142345,-500.0,0.00032054,2]
[310314781,1704471142355,-500.0,0.00032054,2]
[310314782,1704471142367,-500.0,0.00032054,2]
[310314783,1704471142377,-447.604623,0.00032054,2]
[310314784,1704471142388,-500.16,0.00032054,2]
[310314785,1704471142399,-500.0,0.00032054,2]
[310314786,1704471142410,-500.0,0.00032054,2]
[310314787,1704471142420,-576.0,0.00032054,2]
[310314788,1704471142430,-500.0,0.00032054,2]
[310314789,1704471142440,-1162.79,0.00032054,2]
[310314790,1704471142451,-350.56058755,0.00032054,2]
[310314791,1704471142461,-500.0,0.00032054,2]
[310314792,1704471142472,-500.0,0.00032054,2]
[310314793,1704471142482,-500.0,0.00032054,2]
[310314794,1704471142492,-500.0,0.00032054,2]
[310314795,1704471142502,-500.0,0.00032054,2]
[310314796,1704471142513,-774.96,0.00032054,2]
[310314797,1704471142524,-822.37,0.00032054,2]
[310314798,1704471142535,-500.0,0.00032054,2]
[310314799,1704471142546,-382.45740071,0.00032054,2]
[310314800,1704471142559,-500.0,0.00032054,2]
[310314801,1704471142569,-500.0,0.00032054,2]
[310314802,1704471142580,-541.67,0.00032054,2]
[310314803,1704471142591,-500.0,0.00032054,2]
[310314804,1704471142601,-500.0,0.00032054,2]
[310314805,1704471142612,-500.0,0.00032054,2]
[310314806,1704471142622,-500.0,0.00032054,2]
[310314807,1704471142632,-1372.88,0.00032054,2]
[310314808,1704471142911,-753.94,0.00032054,2]
[310314809,1704471142921,-500.0,0.00032054,2]
[310314810,1704471142931,-653.2,0.00032054,2]
[310314811,1704471142941,-500.0,0.00032054,2]
[310314812,1704471142950,-515.93,0.00032054,2]
[310314813,1704471142960,-500.0,0.00032054,2]
[310314814,1704471142969,-500.0,0.00032054,2]
[310314815,1704471142979,-1253.1,0.00032054,2]
[310314816,1704471142989,-643.22148056,0.00032054,2]
[310314817,1704471142999,-727.02,0.00032054,2]
[310314818,1704471143009,-500.0,0.00032054,2]
[310314819,1704471143019,-1238.19,0.00032054,2]
[310314820,1704471143029,-500.0,0.00032054,2]
[310314821,1704471143039,-772.08,0.00032054,2]
[310314822,1704471143050,-295.6557513,0.00032054,2]
[310314823,1704471143060,-500.0,0.00032054,2]
[310314824,1704471143070,-500.0,0.00032054,2]
[310314825,1704471143080,-695.57,0.00032054,2]
[310314826,1704471143090,-500.0,0.00032054,2]
[310314827,1704471143100,-500.0,0.00032054,2]
[310314828,1704471143110,-947.64,0.00032054,2]
[310314829,1704471143120,-500.0,0.00032054,2]
[310314830,1704471143129,-644.36,0.00032054,2]
[310314831,1704471143139,-662.68,0.00032054,2]
[310314832,1704471143149,-500.0,0.00032054,2]
[310314833,1704471143159,-1145.67280127,0.00032054,2]
[310314834,1704471143168,-500.0,0.00032054,2]
[310314835,1704471143178,-500.0,0.00032054,2]
[310314836,1704471143187,-500.0,0.00032054,2]
[310314837,1704471143197,-500.0,0.00032054,2]
[310314838,1704471143207,-500.0,0.00032054,2]
[310314839,1704471143217,-500.0,0.00032054,2]
[310314840,1704471143226,-500.0,0.00032054,2]
[310314841,1704471143237,-500.0,0.00032054,2]
[310314842,1704471143246,-606.21,0.00032054,2]
[310314843,1704471143256,-500.0,0.00032054,2]
[310314844,1704471143266,-1236.18,0.00032054,2]
[310314845,1704471143276,-500.0,0.00032054,2]
[310314846,1704471143286,-500.0,0.00032054,2]
[310314847,1704471143296,-500.0,0.00032054,2]
[310314848,1704471143305,-500.0,0.00032054,2]
[310314849,1704471143316,-500.0,0.00032054,2]
[310314850,1704471143326,-947.15,0.00032054,2]
[310314851,1704471143336,-500.0,0.00032054,2]
[310314852,1704471143346,-500.0,0.00032054,2]
[310314853,1704471143356,-500.0,0.00032054,2]
[310314854,1704471143365,-500.0,0.00032054,2]
[310314855,1704471143375,-500.0,0.00032054,2]
[310314856,1704471143385,-500.59,0.00032054,2]
[310314857,1704471143395,-625.62,0.00032054,2]
[310314858,1704471143404,-545.24,0.00032054,2]
[310314859,1704471143414,-500.0,0.00032054,2]
[310314860,1704471143424,-530.66,0.00032054,2]
[310314861,1704471143434,-637.82,0.00032054,2]
[310314862,1704471143445,-500.0,0.00032054,2]
[310314863,1704471143455,-500.0,0.00032054,2]
[310314864,1704471143464,-500.0,0.00032054,2]
[310314865,1704471143474,-500.0,0.00032054,2]
[310314866,1704471143484,-800.13,0.00032054,2]
[310314867,1704471143493,-500.0,0.00032054,2]
[310314868,1704471143504,-500.0,0.00032054,2]
[310314869,1704471143513,-161.3626482,0.00032054,2]
[310314870,1704471143524,-500.0,0.00032054,2]
[310314871,1704471143533,-500.0,0.00032054,2]
[310314872,1704471143543,-1387.56,0.00032054,2]
[310314873,1704471143552,-500.0,0.00032054,2]
[310314874,1704471143562,-500.0,0.00032054,2]
[310314875,1704471143571,-626.55,0.00032054,2]
[310314876,1704471143581,-1366.99,0.00032054,2]
[310314877,1704471143590,-797.63,0.00032054,2]
[310314878,1704471143600,-500.0,0.00032054,2]
[310314879,1704471143610,-500.0,0.00032054,2]
[310314880,1704471143620,-500.0,0.00032054,2]
[310314881,1704471143630,-500.0,0.00032054,2]
[310314882,1704471143641,-500.0,0.00032054,2]
[310314883,1704471143651,-500.0,0.00032054,2]
[310314884,1704471143660,-703.77,0.00032054,2]
[310314885,1704471143669,-500.0,0.00032054,2]
[310314886,1704471143679,-581.02,0.00032054,2]
[310314887,1704471143688,-1360.29,0.00032054,2]
[310314888,1704471143698,-500.0,0.00032054,2]
[310314889,1704471143707,-500.0,0.00032054,2]
[310314890,1704471143717,-500.0,0.00032054,2]
[310314891,1704471143726,-500.0,0.00032054,2]
[310314892,1704471143736,-531.42,0.00032054,2]
[310314893,1704471143746,-700.18,0.00032054,2]
[310314894,1704471143755,-500.0,0.00032054,2]
[310314895,1704471143765,-500.0,0.00032054,2]
[310314896,1704471143775,-308.47059044,0.00032054,2]
[310314897,1704471143785,-500.0,0.00032054,2]
[310314898,1704471143797,-1036.76,0.00032054,2]
[310314899,1704471143806,-609.18631605,0.00032054,2]
[310314900,1704471143816,-813.88,0.00032054,2]
[310314901,1704471143825,-962.57,0.00032054,2]
[310314902,1704471143834,-1289.38,0.00032054,2]
[310314903,1704471143843,-500.0,0.00032054,2]
[310314904,1704471143853,-500.0,0.00032054,2]
[310314905,1704471143862,-500.0,0.00032054,2]
[310314906,1704471143872,-500.0,0.00032054,2]
[310314907,1704471143881,-500.0,0.00032054,2]
[310314908,1704471143891,-4950.03,0.00032054,2]
[310314909,1704471143900,-500.0,0.00032054,2]
[310314910,1704471143910,-734.2,0.00032054,2]
[310314911,1704471143919,-500.0,0.00032054,2]
[310314912,1704471143929,-500.0,0.00032054,2]
[310314913,1704471143938,-500.0,0.00032054,2]
[310314914,1704471143948,-500.0,0.00032054,2]
[310314915,1704471143957,-568.94840188,0.00032054,2]
[310314916,1704471143967,-712.3,0.00032054,2]
[310314917,1704471143977,-500.0,0.00032054,2]
[310314918,1704471143986,-573.47,0.00032054,2]
[310314919,1704471143997,-834.43,0.00032054,2]
[310314920,1704471144006,-500.0,0.00032054,2]
[310314921,1704471144016,-1459.15,0.00032054,2]
[310314922,1704471144026,-500.0,0.00032054,2]
[310314923,1704471144035,-753.46,0.00032054,2]
[310314924,1704471144045,-500.0,0.00032054,2]
[310314925,1704471144054,-500.0,0.00032054,2]
[310314926,1704471144066,-500.0,0.00032054,2]
[310314927,1704471144076,-500.0,0.00032054,2]
[310314928,1704471144086,-1169.4,0.00032054,2]
[310314929,1704471144095,-564.11,0.00032054,2]
[310314930,1704471144105,-598.84,0.00032054,2]
[310314931,1704471144114,-500.0,0.00032054,2]
[310314932,1704471144124,-528.01150575,0.00032054,2]
[310314933,1704471144134,-1096.24,0.00032054,2]
[310314934,1704471144144,-500.0,0.00032054,2]
[310314935,1704471144154,-1425.41,0.00032054,2]
[310314936,1704471144164,-6105.28,0.00032054,2]
[310314937,1704471144173,-2530.93,0.00032054,2]
[310314938,1704471144183,-500.0,0.00032054,2]
[310314939,1704471144193,-500.0,0.00032054,2]
[310314940,1704471144202,-500.0,0.00032054,2]
[310314941,1704471144211,-500.0,0.00032054,2]
[310314942,1704471144221,-500.0,0.00032054,2]
[310314943,1704471144231,-500.0,0.00032054,2]
[310314944,1704471144240,-500.0,0.00032054,2]
[310314945,1704471144250,-500.0,0.00032054,2]
[310314946,1704471144260,-820.35,0.00032054,2]
[310314947,1704471144270,-500.0,0.00032054,2]
[310314948,1704471144279,-500.0,0.00032054,2]
[310314949,1704471144289,-1820.15,0.00032054,2]
[310314950,1704471144299,-579.04067011,0.00032054,2]
[310314951,1704471144308,-1454.88,0.00032054,2]
[310314952,1704471144318,-848.25,0.00032054,2]
[310314953,1704471144327,-500.0,0.00032054,2]
[310314954,1704471144337,-3529.52,0.00032054,2]
[310314955,1704471144346,-500.0,0.00032054,2]
[310314956,1704471144355,-1261.77,0.00032054,2]
[310314957,1704471144365,-500.0,0.00032054,2]
[310314958,1704471144374,-500.0,0.00032054,2]
[310314959,1704471144384,-500.0,0.00032054,2]
[310314960,1704471144394,-500.0,0.00032054,2]
[310314961,1704471144403,-500.0,0.00032054,2]
[310314962,1704471144413,-673.04,0.00032054,2]
[310314963,1704471144422,-522.36,0.00032054,2]
[310314964,1704471144432,-500.0,0.00032054,2]
[310314965,1704471144441,-1207.05,0.00032054,2]
[310314966,1704471144451,-806.5,0.00032054,2]
[310314967,1704471144460,-543.14,0.00032054,2]
[310314968,1704471144469,-500.0,0.00032054,2]
[310314969,1704471144480,-2710.43,0.00032054,2]
[310314970,1704471144490,-500.0,0.00032054,2]
[310314971,1704471144499,-731.44,0.00032054,2]
[310314972,1704471144510,-500.0,0.00032054,2]
[310314973,1704471144520,-500.0,0.00032054,2]
[310314974,1704471144530,-500.0,0.00032054,2]
[310314975,1704471144540,-519.5,0.00032054,2]
[310314976,1704471144550,-2046.64,0.00032054,2]
[310314977,1704471144560,-762.26,0.00032054,2]
[310314978,1704471144569,-620.31,0.00032054,2]
[310314979,1704471144578,-500.0,0.00032054,2]
[310314980,1704471144588,-1317.65,0.00032054,2]
[310314981,1704471144597,-5333.49,0.00032054,2]
[310314982,1704471144606,-581.29049003,0.00032054,2]
[310314983,1704471144616,-500.0,0.00032054,2]
[310314984,1704471144625,-500.0,0.00032054,2]
[310314985,1704471144634,-978.21,0.00032054,2]
[310314986,1704471144644,-1254.61,0.00032054,2]
[310314987,1704471144653,-500.0,0.00032054,2]
[310314988,1704471144663,-802.02,0.00032054,2]
[310314989,1704471144672,-1336.26,0.00032054,2]
[310314990,1704471144681,-537.87,0.00032054,2]
[310314991,1704471144691,-500.0,0.00032054,2]
[310314992,1704471144700,-3771.03,0.00032054,2]
[310314993,1704471144709,-500.0,0.00032054,2]
[310314994,1704471144719,-500.0,0.00032054,2]
[310314995,1704471144729,-500.0,0.00032054,2]
[310314996,1704471144738,-500.0,0.00032054,2]
[310314997,1704471144748,-500.0,0.00032054,2]
[310314998,1704471144757,-500.0,0.00032054,2]
[310314999,1704471144767,-525.81,0.00032054,2]
[310315000,1704471144777,-184.70225016,0.00032054,2]
[310315001,1704471144786,-500.0,0.00032054,2]
[310315002,1704471144799,-776.01,0.00032054,2]
[310315003,1704471144808,-3060.91,0.00032054,2]
[310315004,1704471144818,-13727.19,0.00032054,2]
[310315005,1704471144827,-500.0,0.00032054,2]
[310315006,1704471144837,-1204.63,0.00032054,2]
[310315007,1704471144846,-500.0,0.00032054,2]
[310315008,1704471144855,-500.0,0.00032054,2]
[310315009,1704471144865,-769.65,0.00032054,2]
[310315010,1704471144874,-500.0,0.00032054,2]
[310315011,1704471144884,-500.0,0.00032054,2]
[310315012,1704471144893,-537.11,0.00032054,2]
[310315013,1704471144903,-4626.56,0.00032054,2]
[310315014,1704471144913,-500.0,0.00032054,2]
[310315015,1704471144922,-3709.47,0.00032054,2]
[310315016,1704471144932,-1733.54,0.00032054,2]
[310315017,1704471144941,-3029.39,0.00032054,2]
[310315018,1704471144950,-9181.09,0.00032054,2]
[310315019,1704471144959,-5426.23,0.00032054,2]
[310315020,1704471144968,-740.27,0.00032054,2]
[310315021,1704471144978,-5834.39,0.00032054,2]
[310315022,1704471144988,-500.0,0.00032054,2]
[310315023,1704471144997,-799.71,0.00032054,2]
[310315024,1704471145007,-500.0,0.00032054,2]
[310315025,1704471145016,-500.0,0.00032054,2]
[310315026,1704471145027,-500.0,0.00032054,2]
[310315027,1704471145038,-500.0,0.00032054,2]
[310315028,1704471145047,-4345.18,0.00032054,2]
[310315029,1704471145057,-725.16,0.00032054,2]
[310315030,1704471145071,-465.38311849,0.00032054,2]
[310315031,1704471145081,-500.0,0.00032054,2]
[310315032,1704471145092,-30937.37,0.00032054,2]
[310315033,1704471145102,-821.62,0.00032054,2]
[310315034,1704471145112,-500.0,0.00032054,2]
[310315035,1704471145121,-1420.61,0.00032054,2]
[310315036,1704471145131,-500.0,0.00032054,2]
[310315037,1704471145141,-675.77,0.00032054,2]
[310315038,1704471145151,-749.5,0.00032054,2]
[310315039,1704471145161,-900.8,0.00032054,2]
[310315040,1704471145171,-699.84,0.00032054,2]
[310315041,1704471145181,-500.0,0.00032054,2]
[310315042,1704471145191,-500.0,0.00032054,2]
[310315043,1704471145201,-500.0,0.00032054,2]
[310315044,1704471145211,-500.0,0.00032054,2]
[310315045,1704471145316,-605.12,0.00032054,2]
[310315046,1704471145330,-809.12,0.00032054,2]
[310315047,1704471145339,-500.0,0.00032054,2]
[310315048,1704471145349,-1182.33,0.00032054,2]
[310315049,1704471145358,-500.0,0.00032054,2]
[310315050,1704471145368,-3777.28,0.00032054,2]
[310315051,1704471145377,-500.0,0.00032054,2]
[310315052,1704471145387,-1058.15,0.00032054,2]
[310315053,1704471145396,-571.4,0.00032054,2]
[310315054,1704471145405,-506.48584394,0.00032054,2]
[310315055,1704471145415,-830.16,0.00032054,2]
[310315056,1704471145424,-2249.97,0.00032054,2]
[310315057,1704471145433,-500.0,0.00032054,2]
[310315058,1704471145442,-500.0,0.00032054,2]
[310315059,1704471145451,-1921.66,0.00032054,2]
[310315060,1704471145460,-1078.96,0.00032054,2]
[310315061,1704471145470,-411.66540549,0.00032054,2]
[310315062,1704471145479,-2596.11,0.00032054,2]
[310315063,1704471145488,-1277.02,0.00032054,2]
[310315064,1704471145498,-500.0,0.00032054,2]
[310315065,1704471145507,-652.62,0.00032054,2]
[310315066,1704471145516,-500.0,0.00032054,2]
[310315067,1704471145526,-915.92,0.00032054,2]
[310315068,1704471145536,-500.0,0.00032054,2]
[310315069,1704471145545,-1916.84,0.00032054,2]
[310315070,1704471145555,-500.0,0.00032054,2]
[310315071,1704471145564,-500.0,0.00032054,2]
[310315072,1704471145574,-150.0,0.00032054,2]
[310315073,1704471145583,-582.86,0.00032054,2]
[310315074,1704471145592,-790.64,0.00032054,2]
[310315075,1704471145601,-500.0,0.00032054,2]
[310315076,1704471145611,-500.0,0.00032054,2]
[310315077,1704471145620,-500.0,0.00032054,2]
[310315078,1704471145629,-3952.46,0.00032054,2]
[310315079,1704471145639,-4595.39,0.00032054,2]
[310315080,1704471145648,-500.0,0.00032054,2]
[310315081,1704471145658,-500.0,0.00032054,2]
[310315082,1704471145667,-500.0,0.00032054,2]
[310315083,1704471145677,-500.0,0.00032054,2]
[310315084,1704471145686,-1252.88,0.00032054,2]
[310315085,1704471145694,-756.94,0.00032054,2]
[310315086,1704471145704,-500.0,0.00032054,2]
[310315087,1704471145715,-717.12,0.00032054,2]
[310315088,1704471145725,-964.19,0.00032054,2]
[310315089,1704471145734,-500.0,0.00032054,2]
[310315090,1704471145744,-1622.29,0.00032054,2]
[310315091,1704471145754,-629.9,0.00032054,2]
[310315092,1704471145763,-500.0,0.00032054,2]
[310315093,1704471145773,-2229.13,0.00032054,2]
[310315094,1704471145783,-511.35,0.00032054,2]
[310315095,1704471145793,-500.0,0.00032054,2]
[310315096,1704471145805,-1254.57,0.00032054,2]
[310315097,1704471145815,-1984.28,0.00032054,2]
[310315098,1704471145824,-6081.11,0.00032054,2]
[310315099,1704471145833,-529.0,0.00032054,2]
[310315100,1704471145842,-500.0,0.00032054,2]
[310315101,1704471145853,-500.0,0.00032054,2]
[310315102,1704471145862,-730.24,0.00032054,2]
[310315103,1704471145872,-500.0,0.00032054,2]
[310315104,1704471145884,-839.46,0.00032054,2]
[310315105,1704471145894,-1375.91,0.00032054,2]
[310315106,1704471145903,-500.0,0.00032054,2]
[310315107,1704471145913,-500.0,0.00032054,2]
[310315108,1704471145923,-1622.69,0.00032054,2]
[310315109,1704471145932,-11940.29,0.00032054,2]
[310315110,1704471145942,-5893.72,0.00032054,2]
[310315111,1704471145951,-1045.96,0.00032054,2]
[310315112,1704471145961,-2605.01,0.00032054,2]
[310315113,1704471145970,-500.0,0.00032054,2]
[310315114,1704471145980,-381.78,0.00032054,2]
[310315115,1704471145990,-500.0,0.00032054,2]
[310315116,1704471145999,-500.0,0.00032054,2]
[310315117,1704471146009,-500.0,0.00032054,2]
[310315118,1704471146019,-500.0,0.00032054,2]
[310315119,1704471146031,-500.0,0.00032054,2]
[310315120,1704471146040,-500.0,0.00032054,2]
[310315121,1704471146050,-608.68,0.00032054,2]
[310315122,1704471146060,-713.7,0.00032054,2]
[310315123,1704471146070,-7863.2,0.00032054,2]
[310315124,1704471146079,-2294.09,0.00032054,2]